fUST/lending_fUST_20250910
["ID","MTS","AMOUNT","RATE_DAILY","PERIOD"]
[384616326,1757482245088,-480.0,0.00013698,2]
[384616328,1757482245097,-446.69462707,0.00013698,2]
[384616330,1757482245106,-482.26827808,0.00013698,2]
[384616332,1757482245115,-480.0,0.00013698,2]
[384616334,1757482245125,-480.0,0.00013698,2]
[384616336,1757482245135,-487.62638926,0.00013698,2]
[384616338,1757482245144,-36.91881073,0.00013698,2]
[384616453,1757482449422,2351.70485645,0.00013158,2]
[384616454,1757482626692,2351.70485645,0.00013158,2]
[384616455,1757482837812,591.54441861,0.00013157,2]
[384616459,1757483164548,462.36,0.00012329,2]
[384616460,1757483252098,-591.54441861,0.0001329,2]
[384616461,1757483252119,-591.54441861,0.00013424,2]
[384616462,1757483252142,-1200.0,0.00013597,2]
[384616463,1757483252163,-1253.46548291,0.00013598,2]
[384616464,1757483252183,-1317.44499453,0.00013598,2]
[384616465,1757483252205,-1074.93198275,0.00013598,2]
[384616534,1757483438636,-2460.72902232,0.00013462,2]
[384616535,1757483438692,-397.95977454,0.00013462,2]
[384616536,1757483438702,-394.36294574,0.00013462,2]
[384616537,1757483438711,-1200.0,0.00013596,2]
[384616538,1757483438721,-300.0,0.00013597,2]
[384616539,1757483438730,-300.0,0.00013597,2]
[384616540,1757483438739,-300.0,0.00013597,2]
[384616541,1757483438749,-1002.77238636,0.00013598,2]
[384616542,1757483438758,-104.86083435,0.00013598,2]
[384616543,1757483438770,-2753.82796251,0.00013598,2]
[384616544,1757483438779,-10000.01,0.00013697,2]
[384616545,1757483438789,-158.39895165,0.00013697,2]
[384616546,1757483438799,-500.0,0.00013697,2]
[384616547,1757483438808,-500.0,0.00013697,2]
[384616548,1757483438818,-500.0,0.00013697,2]
[384616549,1757483438829,-500.0,0.00013697,2]
[384616550,1757483438838,-302.33007067,0.00013697,2]
[384616551,1757483438847,-500.0,0.00013697,2]
[384616552,1757483438857,-500.0,0.00013697,2]
[384616553,1757483438866,-500.0,0.00013697,2]
[384616554,1757483438876,-500.0,0.00013697,2]
[384616555,1757483438886,-500.0,0.00013697,2]
[384616556,1757483438895,-500.0,0.00013697,2]
[384616557,1757483438904,-482.77517378,0.00013698,2]
[384616558,1757483438914,-481.94421565,0.00013698,2]
[384616559,1757483438923,-480.0,0.00013698,2]
[384616560,1757483438932,-480.77852042,0.00013698,2]
[384616561,1757483438942,-522.12402454,0.00013698,2]
[384616562,1757483438952,-480.0,0.00013698,2]
[384616563,1757483438961,-488.2183371,0.00013698,2]
[384616564,1757483438970,-486.29804766,0.00013698,2]
[384616565,1757483438979,-485.1858738,0.00013698,2]
[384616566,1757483438988,-480.0,0.00013698,2]
[384616567,1757483438997,-536.05603285,0.00013698,2]
[384616568,1757483439007,-480.0,0.00013698,2]
[384616569,1757483439016,-385.86610388,0.00013698,2]
[384616570,1757483439025,-462.84282901,0.00013698,2]
[384616571,1757483439035,-480.0,0.00013698,2]
[384616572,1757483439044,-481.23106663,0.00013698,2]
[384616573,1757483439053,-488.24591542,0.00013698,2]
[384616574,1757483439063,-480.0,0.00013698,2]
[384616575,1757483439072,-582.18004331,0.00013698,2]
[384616576,1757483439082,-480.48419285,0.00013698,2]
[384616577,1757483439091,-480.0,0.00013698,2]
[384616578,1757483439101,-483.40890707,0.00013698,2]
[384616579,1757483439110,-480.0,0.00013698,2]
[384616580,1757483439119,-529.32651905,0.00013698,2]
[384616581,1757483439129,-486.10810558,0.00013698,2]
[384616582,1757483439138,-151.0,0.00013698,2]
[384616583,1757483439147,-151.0,0.00013698,2]
[384616584,1757483439156,-151.0,0.00013698,2]
[384616585,1757483439165,-481.48004506,0.00013698,2]
[384616586,1757483439175,-151.0,0.00013698,2]
[384616587,1757483439184,-483.35175481,0.00013698,2]
[384616588,1757483439193,-482.56912636,0.00013698,2]
[384616589,1757483439202,-480.66876412,0.00013698,2]
[384616590,1757483439211,-482.47707377,0.00013698,2]
[384616591,1757483439221,-484.97151392,0.00013698,2]
[384616592,1757483439231,-482.55263004,0.00013698,2]
[384616593,1757483439240,-483.61320767,0.00013698,2]
[384616594,1757483439250,-484.21240812,0.00013698,2]
[384616595,1757483439264,-377.34455301,0.00013698,2]
[384616596,1757483439273,-282.05348692,0.00013698,2]
[384616627,1757483440663,-199.89431172,0.00013698,2]
[384616629,1757483440673,-229.20509812,0.00013698,2]
[384616908,1757483443599,-619.67339358,0.00013561,2]
[384616911,1757483443610,-322.30552025,0.00013561,2]
[384617139,1757483446626,-716.53931282,0.00013561,2]
[384617167,1757484441129,-802.21790908,0.00013327,2]
[384617168,1757484441150,-422.55067414,0.00013597,2]
[384617204,1757484631803,-1077.44932586,0.00013461,2]
[384617207,1757484631815,-300.0,0.00013597,2]
[384617210,1757484631825,-777.0,0.00013597,2]
[384617212,1757484631834,-802.21790908,0.00013598,2]
[384617214,1757484631843,-9097.54173595,0.00013598,2]
[384617216,1757484631855,-1118.87,0.000136,2]
[384617218,1757484631866,-802.21790905,0.00013667,2]
[384617220,1757484631875,-1198.3720916,0.00013688,2]
[384617222,1757484631885,-2030.296672,0.0001369,2]
[384617224,1757484631894,-519.08458646,0.00013697,2]
[384617226,1757484631903,-500.0,0.00013697,2]
[384617227,1757484631912,-500.0,0.00013697,2]
[384617230,1757484631922,-500.0,0.00013697,2]
[384617232,1757484631932,-200.0,0.00013697,2]
[384617233,1757484631943,-500.0,0.00013697,2]
[384617234,1757484631953,-500.0,0.00013697,2]
[384617236,1757484631963,-633.19932341,0.00013697,2]
[384617237,1757484631973,-533.13422297,0.00013697,2]
[384617238,1757484631982,-500.0,0.00013697,2]
[384617239,1757484631991,-392.1339923,0.00013697,2]
[384617240,1757484632001,-500.0,0.00013697,2]
[384617241,1757484632010,-155.0,0.00013697,2]
[384617244,1757484632020,-170.08449885,0.00013697,2]
[384617246,1757484632038,-382.92950115,0.00013697,2]
[384617248,1757484632050,-274.24025385,0.00013698,2]
[384617250,1757484632060,-480.0,0.00013698,2]
[384617252,1757484632069,-480.0,0.00013698,2]
[384617254,1757484632078,-480.58205029,0.00013698,2]
[384617256,1757484632088,-480.0,0.00013698,2]
[384617258,1757484632097,-480.0,0.00013698,2]
[384617260,1757484632107,-480.0,0.00013698,2]
[384617262,1757484632116,-480.0,0.00013698,2]
[384617263,1757484632125,-480.0,0.00013698,2]
[384617264,1757484632135,-480.0,0.00013698,2]
[384617265,1757484632144,-480.0,0.00013698,2]
[384617266,1757484632154,-480.0,0.00013698,2]
[384617267,1757484632163,-480.0,0.00013698,2]
[384617268,1757484632173,-480.0,0.00013698,2]
[384617269,1757484632182,-480.0,0.00013698,2]
[384617270,1757484632191,-480.0,0.00013698,2]
[384617271,1757484632201,-482.25157617,0.00013698,2]
[384617272,1757484632211,-480.0,0.00013698,2]
[384617273,1757484632220,-480.0,0.00013698,2]
[384617274,1757484632230,-480.0,0.00013698,2]
[384617275,1757484632239,-480.0,0.00013698,2]
[384617276,1757484632247,-480.0,0.00013698,2]
[384617277,1757484632256,-480.0,0.00013698,2]
[384617278,1757484632265,-480.0,0.00013698,2]
[384617279,1757484632274,-481.01614562,0.00013698,2]
[384617280,1757484632285,-480.0,0.00013698,2]
[384617281,1757484632294,-480.0,0.00013698,2]
[384617282,1757484632303,-480.0,0.00013698,2]
[384617283,1757484632312,-428.91027429,0.00013698,2]
[384617284,1757484632322,-480.0,0.00013698,2]
[384617285,1757484632331,-480.0,0.00013698,2]
[384617286,1757484632340,-480.0,0.00013698,2]
[384617287,1757484632349,-480.0,0.00013698,2]
[384617288,1757484632358,-480.0,0.00013698,2]
[384617289,1757484632367,-409.94727695,0.00013698,2]
[384617290,1757484632376,-480.0,0.00013698,2]
[384617291,1757484632385,-480.0,0.00013698,2]
[384617292,1757484632395,-483.42010019,0.00013698,2]
[384617293,1757484632405,-480.0,0.00013698,2]
[384617294,1757484632414,-482.51626723,0.00013698,2]
[384617295,1757484632423,-480.0,0.00013698,2]
[384617296,1757484632432,-480.0,0.00013698,2]
[384617297,1757484632441,-486.58566642,0.00013698,2]
[384617298,1757484632454,-480.0,0.00013698,2]
[384617299,1757484632463,-425.07027427,0.00013698,2]
[384617300,1757484632472,-480.0,0.00013698,2]
[384617301,1757484632481,-480.0,0.00013698,2]
[384617302,1757484632490,-484.44556388,0.00013698,2]
[384617303,1757484632499,-480.0,0.00013698,2]
[384617304,1757484632509,-480.0,0.00013698,2]
[384617305,1757484632519,-1010.81323848,0.00013698,2]
[384617307,1757484632528,-480.0,0.00013698,2]
[384617309,1757484632538,-480.0,0.00013698,2]
[384617311,1757484632548,-151.0,0.00013698,2]
[384617313,1757484632557,-151.0,0.00013698,2]
[384617315,1757484632566,-241.0,0.00013698,2]
[384617317,1757484632575,-480.0,0.00013698,2]
[384617319,1757484632584,-480.0,0.00013698,2]
[384617321,1757484632593,-480.0,0.00013698,2]
[384617322,1757484632602,-480.0,0.00013698,2]
[384617323,1757484632612,-395.47365375,0.00013698,2]
[384617324,1757484632621,-484.03560337,0.00013698,2]
[384617325,1757484632630,-480.0,0.00013698,2]
[384617326,1757484632639,-480.0,0.00013698,2]
[384617327,1757484632649,-482.55816723,0.00013698,2]
[384617328,1757484632658,-151.0,0.00013698,2]
[384617329,1757484632667,-151.0,0.00013698,2]
[384617330,1757484632676,-480.0,0.00013698,2]
[384617331,1757484632686,-480.0,0.00013698,2]
[384617332,1757484632695,-481.94413647,0.00013698,2]
[384617333,1757484632704,-480.0,0.00013698,2]
[384617334,1757484632714,-480.0,0.00013698,2]
[384617335,1757484632723,-483.47507626,0.00013698,2]
[384617336,1757484632732,-231.94299302,0.00013698,2]
[384617337,1757484632741,-480.0,0.00013698,2]
[384617338,1757484632750,-480.0,0.00013698,2]
[384617339,1757484632759,-480.0,0.00013698,2]
[384617340,1757484632770,-480.0,0.00013698,2]
[384617341,1757484632790,-480.0,0.00013698,2]
[384617342,1757484632799,-480.0,0.00013698,2]
[384617343,1757484632809,-480.0,0.00013698,2]
[384617344,1757484632818,-480.0,0.00013698,2]
[384617345,1757484632827,-151.0,0.00013698,2]
[384617346,1757484632836,-290.527179,0.00013698,2]
[384617347,1757484632845,-151.0,0.00013698,2]
[384617348,1757484632854,-480.0,0.00013698,2]
[384617349,1757484632863,-153.54391,0.00013698,2]
[384617350,1757484632874,-151.0,0.00013698,2]
[384617351,1757484632883,-151.0,0.00013698,2]
[384617352,1757484632892,-480.0,0.00013698,2]
[384617353,1757484632904,-151.0,0.00013698,2]
[384617354,1757484632913,-157.87158,0.00013698,2]
[384617355,1757484632923,-489.37176191,0.00013698,2]
[384617356,1757484632932,-201.30453569,0.00013698,2]
[384617357,1757484632942,-480.0,0.00013698,2]
[384617358,1757484632951,-480.0,0.00013698,2]
[384617359,1757484632960,-480.0,0.00013698,2]
[384617360,1757484632970,-480.0,0.00013698,2]
[384617361,1757484632979,-481.91722014,0.00013698,2]
[384617362,1757484632989,-480.0,0.00013698,2]
[384617363,1757484632998,-483.31449855,0.00013698,2]
[384617364,1757484633007,-480.0,0.00013698,2]
[384617365,1757484633017,-480.0,0.00013698,2]
[384617366,1757484633027,-482.36786255,0.00013698,2]
[384617367,1757484633037,-480.0,0.00013698,2]
[384617368,1757484633047,-481.35852703,0.00013698,2]
[384617369,1757484633057,-480.0,0.00013698,2]
[384617370,1757484633066,-480.0,0.00013698,2]
[384617371,1757484633076,-480.0,0.00013698,2]
[384617372,1757484633086,-480.0,0.00013698,2]
[384617373,1757484633096,-483.66432483,0.00013698,2]
[384617374,1757484633105,-480.0,0.00013698,2]
[384617375,1757484633115,-480.0,0.00013698,2]
[384617376,1757484633124,-480.0,0.00013698,2]
[384617377,1757484633134,-480.0,0.00013698,2]
[384617378,1757484633144,-485.20963442,0.00013698,2]
[384617379,1757484633153,-480.0,0.00013698,2]
[384617380,1757484633163,-238.49694058,0.00013698,2]
[384617381,1757484633172,-480.0,0.00013698,2]
[384617382,1757484633182,-480.0,0.00013698,2]
[384617383,1757484633192,-480.0,0.00013698,2]
[384617384,1757484633201,-480.0,0.00013698,2]
[384617385,1757484633211,-480.0,0.00013698,2]
[384617386,1757484633220,-482.45970345,0.00013698,2]
[384617387,1757484633229,-480.0,0.00013698,2]
[384617388,1757484633239,-480.0,0.00013698,2]
[384617389,1757484633248,-481.60560817,0.00013698,2]
[384617390,1757484633258,-482.75418755,0.00013698,2]
[384617391,1757484633267,-480.0,0.00013698,2]
[384617392,1757484633277,-480.0,0.00013698,2]
[384617393,1757484633287,-604.69935293,0.00013698,2]
[384617394,1757484633297,-480.0,0.00013698,2]
[384617395,1757484633307,-487.33763935,0.00013698,2]
[384617396,1757484633317,-480.0,0.00013698,2]
[384617397,1757484633441,-480.0,0.00013698,2]
[384617398,1757484633451,-493.77635082,0.00013698,2]
[384617399,1757484633461,-480.0,0.00013698,2]
[384617400,1757484633471,-483.69608309,0.00013698,2]
[384617401,1757484633481,-480.0,0.00013698,2]
[384617402,1757484633491,-483.83303887,0.00013698,2]
[384617403,1757484633500,-151.0,0.00013698,2]
[384617404,1757484633509,-151.0,0.00013698,2]
[384617405,1757484633519,-151.0,0.00013698,2]
[384617406,1757484633528,-151.0,0.00013698,2]
[384617407,1757484633538,-151.0,0.00013698,2]
[384617408,1757484633548,-487.77906598,0.00013698,2]
[384617409,1757484633557,-151.0,0.00013698,2]
[384617410,1757484633567,-151.0,0.00013698,2]
[384617411,1757484633576,-151.0,0.00013698,2]
[384617412,1757484633585,-151.0,0.00013698,2]
[384617413,1757484633595,-151.0,0.00013698,2]
[384617414,1757484633604,-152.231488,0.00013698,2]
[384617415,1757484633613,-480.0,0.00013698,2]
[384617416,1757484633623,-151.0,0.00013698,2]
[384617417,1757484633632,-151.0,0.00013698,2]
[384617418,1757484633641,-151.0,0.00013698,2]
[384617419,1757484633650,-151.0,0.00013698,2]
[384617420,1757484633660,-151.0,0.00013698,2]
[384617421,1757484633669,-480.0,0.00013698,2]
[384617422,1757484633678,-204.083534,0.00013698,2]
[384617423,1757484633687,-497.37706368,0.00013698,2]
[384617424,1757484633697,-480.0,0.00013698,2]
[384617425,1757484633707,-480.0,0.00013698,2]
[384617426,1757484633716,-480.0,0.00013698,2]
[384617427,1757484633725,-485.30389702,0.00013698,2]
[384617428,1757484633735,-482.31164253,0.00013698,2]
[384617429,1757484633744,-480.0,0.00013698,2]
[384617430,1757484633753,-480.0,0.00013698,2]
[384617431,1757484633762,-480.0,0.00013698,2]
[384617432,1757484633775,-480.0,0.00013698,2]
[384617433,1757484633785,-480.0,0.00013698,2]
[384617434,1757484633794,-480.0,0.00013698,2]
[384617435,1757484633803,-151.0,0.00013698,2]
[384617436,1757484633814,-151.0,0.00013698,2]
[384617437,1757484633824,-151.0,0.00013698,2]
[384617438,1757484633833,-151.0,0.00013698,2]
[384617439,1757484633842,-151.0,0.00013698,2]
[384617440,1757484633853,-151.0,0.00013698,2]
[384617441,1757484633863,-151.0,0.00013698,2]
[384617442,1757484633873,-151.0,0.00013698,2]
[384617443,1757484633883,-151.0,0.00013698,2]
[384617444,1757484633892,-151.0,0.00013698,2]
[384617445,1757484633901,-160.743067,0.00013698,2]
[384617446,1757484633910,-1000.0,0.00013698,2]
[384617447,1757484633920,-480.0,0.00013698,2]
[384617448,1757484633930,-151.0,0.00013698,2]
[384617449,1757484633940,-151.0,0.00013698,2]
[384617450,1757484633951,-151.0,0.00013698,2]
[384617451,1757484633961,-211.832833,0.00013698,2]
[384617452,1757484633971,-500.0,0.00013698,2]
[384617453,1757484633980,-480.37184423,0.00013698,2]
[384617454,1757484633990,-474.8156795,0.00013698,2]
[384617455,1757484634000,-480.0,0.00013698,2]
[384617456,1757484634010,-929.39,0.00013698,2]
[384617457,1757484634019,-929.39,0.00013698,2]
[384617458,1757484634029,-151.0,0.00013698,2]
[384617459,1757484634038,-929.39,0.00013698,2]
[384617460,1757484634047,-151.0,0.00013698,2]
[384617461,1757484634057,-151.0,0.00013698,2]
[384617462,1757484634066,-929.39,0.00013698,2]
[384617463,1757484634076,-151.0,0.00013698,2]
[384617464,1757484634086,-929.39,0.00013698,2]
[384617465,1757484634096,-808.62016901,0.00013698,2]
[384617466,1757484634119,-120.76983099,0.00013698,2]
[384617467,1757484634128,-151.0,0.00013698,2]
[384617468,1757484634138,-305.5094072,0.00013698,2]
[384617469,1757484634148,-929.39,0.00013698,2]
[384617470,1757484634158,-151.0,0.00013698,2]
[384617471,1757484634167,-929.39,0.00013698,2]
[384617472,1757484634178,-151.0,0.00013698,2]
[384617473,1757484634188,-219.372395,0.00013698,2]
[384617474,1757484634197,-480.0,0.00013698,2]
[384617475,1757484634207,-480.0,0.00013698,2]
[384617476,1757484634216,-151.0,0.00013698,2]
[384617477,1757484634225,-151.0,0.00013698,2]
[384617478,1757484634234,-237.273321,0.00013698,2]
[384617479,1757484634244,-480.0,0.00013698,2]
[384617480,1757484634253,-480.0,0.00013698,2]
[384617481,1757484634262,-480.0,0.00013698,2]
[384617482,1757484634272,-480.0,0.00013698,2]
[384617483,1757484634281,-480.0,0.00013698,2]
[384617484,1757484634291,-480.0,0.00013698,2]
[384617485,1757484634300,-480.0,0.00013698,2]
[384617486,1757484634309,-152.200474,0.00013698,2]
[384617487,1757484634319,-480.0,0.00013698,2]
[384617488,1757484634328,-480.0,0.00013698,2]
[384617489,1757484634337,-480.0,0.00013698,2]
[384617490,1757484634346,-480.0,0.00013698,2]
[384617491,1757484634356,-481.28200937,0.00013698,2]
[384617492,1757484634365,-480.0,0.00013698,2]
[384617493,1757484634377,-486.25636793,0.00013698,2]
[384617494,1757484634388,-151.0,0.00013698,2]
[384617495,1757484634398,-151.0,0.00013698,2]
[384617496,1757484634407,-151.0,0.00013698,2]
[384617497,1757484634416,-484.08394252,0.00013698,2]
[384617498,1757484634425,-480.0,0.00013698,2]
[384617499,1757484634434,-151.0,0.00013698,2]
[384617500,1757484634443,-151.0,0.00013698,2]
[384617501,1757484634452,-151.0,0.00013698,2]
[384617502,1757484634461,-151.0,0.00013698,2]
[384617503,1757484634470,-151.0,0.00013698,2]
[384617504,1757484634480,-178.0699,0.00013698,2]
[384617505,1757484634489,-480.0,0.00013698,2]
[384617506,1757484634498,-480.0,0.00013698,2]
[384617507,1757484634507,-480.0,0.00013698,2]
[384617508,1757484634516,-480.0,0.00013698,2]
[384617509,1757484634525,-581.75008886,0.00013698,2]
[384617510,1757484634535,-337.22089066,0.00013698,2]
[384617511,1757484634543,-151.0,0.00013698,2]
[384617512,1757484634553,-164.551478,0.00013698,2]
[384617513,1757484634562,-569.75580954,0.00013698,2]
[384617514,1757484634571,-483.49735075,0.00013698,2]
[384617515,1757484634580,-503.25096151,0.00013698,2]
[384617516,1757484634589,-480.0,0.00013698,2]
[384617517,1757484634598,-445.79794034,0.00013698,2]
[384617518,1757484634608,-480.0,0.00013698,2]
[384617519,1757484634617,-484.70366408,0.00013698,2]
[384617520,1757484634625,-480.0,0.00013698,2]
[384617521,1757484634634,-480.0,0.00013698,2]
[384617522,1757484634643,-480.0,0.00013698,2]
[384617523,1757484634652,-480.0,0.00013698,2]
[384617524,1757484634662,-480.0,0.00013698,2]
[384617525,1757484634671,-483.80127653,0.00013698,2]
[384617526,1757484634680,-480.0,0.00013698,2]
[384617527,1757484634690,-541.82722096,0.00013698,2]
[384617528,1757484634699,-480.0,0.00013698,2]
[384617529,1757484634708,-480.0,0.00013698,2]
[384617530,1757484634717,-492.54523746,0.00013698,2]
[384617531,1757484634727,-480.0,0.00013698,2]
[384617532,1757484634736,-480.0,0.00013698,2]
[384617533,1757484634746,-227.85664788,0.00013698,2]
[384617534,1757484634755,-910.51516494,0.00013698,2]
[384617535,1757484634764,-480.0,0.00013698,2]
[384617536,1757484634777,-151.0,0.00013698,2]
[384617537,1757484634787,-152.803625,0.00013698,2]
[384617538,1757484634796,-480.0,0.00013698,2]
[384617539,1757484634806,-304.38856446,0.00013698,2]
[384617540,1757484634816,-480.0,0.00013698,2]
[384617541,1757484634825,-480.0,0.00013698,2]
[384617542,1757484634834,-486.6662864,0.00013698,2]
[384617543,1757484634844,-480.0,0.00013698,2]
[384617544,1757484634854,-238.33307832,0.00013698,2]
[384617545,1757484634864,-480.0,0.00013698,2]
[384617546,1757484634873,-480.0,0.00013698,2]
[384617547,1757484634883,-480.0,0.00013698,2]
[384617548,1757484634892,-480.0,0.00013698,2]
[384617549,1757484634901,-468.24888468,0.00013698,2]
[384617550,1757484634910,-480.0,0.00013698,2]
[384617551,1757484634920,-480.0,0.00013698,2]
[384617552,1757484634929,-484.54481576,0.00013698,2]
[384617553,1757484634939,-286.84408812,0.00013698,2]
[384617554,1757484634949,-263.17066881,0.00013698,2]
[384617555,1757484634968,-216.82933119,0.00013698,2]
[384617556,1757484634978,-480.0,0.00013698,2]
[384617557,1757484634987,-307.55232212,0.00013698,2]
[384617558,1757484634997,-156.57896282,0.00013698,2]
[384617559,1757484635010,-323.42103718,0.00013698,2]
[384617560,1757484635019,-483.82043136,0.00013698,2]
[384617561,1757484635028,-480.0,0.00013698,2]
[384617562,1757484635038,-480.0,0.00013698,2]
[384617563,1757484635047,-484.03565378,0.00013698,2]
[384617564,1757484635056,-480.0,0.00013698,2]
[384617565,1757484635066,-151.0,0.00013698,2]
[384617566,1757484635075,-151.0,0.00013698,2]
[384617567,1757484635084,-480.0,0.00013698,2]
[384617568,1757484635094,-151.0,0.00013698,2]
[384617569,1757484635103,-165.279308,0.00013698,2]
[384617570,1757484635113,-480.0,0.00013698,2]
[384617571,1757484635122,-480.0,0.00013698,2]
[384617572,1757484635131,-480.0,0.00013698,2]
[384617573,1757484635141,-480.0,0.00013698,2]
[384617574,1757484635150,-480.0,0.00013698,2]
[384617575,1757484635159,-480.0,0.00013698,2]
[384617576,1757484635168,-480.0,0.00013698,2]
[384617577,1757484635178,-480.0,0.00013698,2]
[384617578,1757484635187,-480.0,0.00013698,2]
[384617579,1757484635199,-484.12168288,0.00013698,2]
[384617580,1757484635208,-480.0,0.00013698,2]
[384617581,1757484635217,-346.08558636,0.00013698,2]
[384617582,1757484635227,-480.0,0.00013698,2]
[384617583,1757484635237,-480.0,0.00013698,2]
[384617584,1757484635246,-182.49202447,0.00013698,2]
[384617588,1757484637854,-318.5057919,0.00013698,2]
[384617589,1757484637865,-489.35651521,0.00013698,2]
[384617590,1757484637875,-480.0,0.00013698,2]
[384617591,1757484637885,-1026.24406844,0.00013698,2]
[384617592,1757484637895,-480.0,0.00013698,2]
[384617593,1757484637904,-480.0,0.00013698,2]
[384617594,1757484637913,-158.145867,0.00013698,2]
[384617595,1757484637923,-480.0,0.00013698,2]
[384617596,1757484637932,-480.0,0.00013698,2]
[384617597,1757484637941,-480.0,0.00013698,2]
[384617598,1757484637951,-480.0,0.00013698,2]
[384617599,1757484637960,-160.398249,0.00013698,2]
[384617600,1757484637969,-500.0,0.00013698,2]
[384617601,1757484637979,-157.0,0.00013698,2]
[384617602,1757484637989,-490.83860205,0.00013698,2]
[384617603,1757484637998,-387.33701921,0.00013698,2]
[384617604,1757484638007,-481.94812736,0.00013698,2]
[384617605,1757484638017,-396.55816109,0.00013698,2]
[384617606,1757484638026,-480.0,0.00013698,2]
[384617607,1757484638035,-481.8054381,0.00013698,2]
[384617608,1757484638046,-480.0,0.00013698,2]
[384617609,1757484638056,-480.0,0.00013698,2]
[384617610,1757484638065,-480.0,0.00013698,2]
[384617611,1757484638074,-485.49765979,0.00013698,2]
[384617612,1757484638084,-480.0,0.00013698,2]
[384617613,1757484638094,-483.86996355,0.00013698,2]
[384617614,1757484638104,-448.43545646,0.00013698,2]
[384617615,1757484638114,-489.66016447,0.00013698,2]
[384617616,1757484638124,-480.0,0.00013698,2]
[384617617,1757484638134,-481.53765316,0.00013698,2]
[384617618,1757484638143,-480.0,0.00013698,2]
[384617619,1757484638153,-480.97232285,0.00013698,2]
[384617620,1757484638164,-480.0,0.00013698,2]
[384617621,1757484638174,-480.0,0.00013698,2]
[384617622,1757484638184,-480.0,0.00013698,2]
[384617623,1757484638193,-480.0,0.00013698,2]
[384617624,1757484638203,-622.20854532,0.00013698,2]
[384617625,1757484638212,-480.0,0.00013698,2]
[384617626,1757484638221,-480.0,0.00013698,2]
[384617627,1757484638230,-480.0,0.00013698,2]
[384617628,1757484638239,-480.0,0.00013698,2]
[384617629,1757484638249,-480.0,0.00013698,2]
[384617630,1757484638258,-480.0,0.00013698,2]
[384617631,1757484638267,-480.0,0.00013698,2]
[384617632,1757484638276,-178.68274596,0.00013698,2]
[384617633,1757484638285,-480.0,0.00013698,2]
[384617634,1757484638296,-480.83118516,0.00013698,2]
[384617635,1757484638305,-480.0,0.00013698,2]
[384617636,1757484638315,-483.24665026,0.00013698,2]
[384617637,1757484638324,-481.09581719,0.00013698,2]
[384617638,1757484638334,-489.03419716,0.00013698,2]
[384617639,1757484638343,-480.0,0.00013698,2]
[384617640,1757484638353,-480.0,0.00013698,2]
[384617641,1757484638362,-480.0,0.00013698,2]
[384617642,1757484638371,-480.0,0.00013698,2]
[384617643,1757484638380,-480.0,0.00013698,2]
[384617644,1757484638390,-482.39625531,0.00013698,2]
[384617645,1757484638399,-480.0,0.00013698,2]
[384617646,1757484638408,-492.97735662,0.00013698,2]
[384617647,1757484638418,-480.0,0.00013698,2]
[384617648,1757484638427,-480.0,0.00013698,2]
[384617649,1757484638436,-480.0,0.00013698,2]
[384617650,1757484638445,-154.254835,0.00013698,2]
[384617651,1757484638454,-480.0,0.00013698,2]
[384617652,1757484638464,-480.0,0.00013698,2]
[384617653,1757484638473,-839.34,0.00013698,2]
[384617654,1757484638483,-480.0,0.00013698,2]